fUST/lending_fUST_20260131
["ID","MTS","AMOUNT","RATE_DAILY","PERIOD"]
[404093480,1769818237946,-243.58235689,0.00034819,7]
[404093482,1769818237958,-794.22418371,0.0003482,30]
[404093484,1769818237969,-1721688.02629209,0.0003482,30]
[404093486,1769818237981,-772.04249589,0.0003482,30]
[404093488,1769818237994,-1023.73570649,0.0003482,30]
[404093490,1769818238005,-526.80861021,0.0003482,30]
[404093493,1769818238016,-2571.65123819,0.0003482,30]
[404093495,1769818238027,-355.81467659,0.0003482,30]
[404093497,1769818238040,-590.20098587,0.0003482,30]
[404093673,1769818240092,-17211.74169287,0.0003482,30]
[404093680,1769818240157,-80139.93218242,0.0003482,30]
[404093682,1769818240168,-26485.27365523,0.0003482,30]
[404093731,1769818245936,-199.6146215,0.000341,120]
[404093733,1769818245946,-2978.05,0.0003481,10]
[404093735,1769818245955,-24495.05977594,0.0003482,30]
[404093742,1769818246042,-33383.66175964,0.0003482,30]
[404093790,1769819431913,-763.0,0.00022198,2]
[404093793,1769819431924,-180.381,0.00022198,2]
[404093795,1769819431933,-177.0,0.00025198,2]
[404093815,1769819432043,-162.63035117,0.00027198,2]
[404093821,1769819432099,-42.98864883,0.00030137,120]
[404093824,1769819432110,-4957.01135117,0.00030137,120]
[404093827,1769819432120,-788.15966488,0.00033978,120]
[404093829,1769819432131,-77.70282293,0.00033978,120]
[404093830,1769819432140,-186.5239794,0.00034078,30]
[404093832,1769819432149,-604.2779224,0.00034078,30]
[404093834,1769819432158,-604.2779224,0.00034078,30]
[404093836,1769819432167,-604.2779224,0.00034078,30]
[404093838,1769819432177,-604.2779224,0.00034078,30]
[404093841,1769819432186,-604.2779224,0.00034078,30]
[404093842,1769819432195,-231.0411626,0.000341,120]
[404093845,1769819432204,-552.41356272,0.000341,120]
[404093847,1769819432213,-223.0072501,0.000341,120]
[404093848,1769819432222,-169.99846014,0.000341,120]
[404093850,1769819432233,-845.43090384,0.000341,120]
[404093852,1769819432242,-872.54791227,0.000341,120]
[404093855,1769819432251,-191.9744,0.000341,120]
[404093856,1769819432260,-209.54301696,0.000341,120]
[404093859,1769819432270,-186.0049703,0.000341,120]
[404093860,1769819432285,-199.61462149,0.000341,120]
[404093862,1769819432295,-185.4228781,0.0003411,30]
[404093865,1769819432307,-865.86248781,0.00034194,120]
[404093867,1769819432318,-865.86248781,0.00034409,120]
[404093868,1769819432327,-865.86248781,0.00034625,120]
[404093870,1769819432336,-252.6886804,0.00034727,30]
[404093872,1769819432347,-459.0,0.0003482,30]
[404093875,1769819432357,-539.0,0.0003482,30]
[404093876,1769819432367,-1517.0,0.0003482,30]
[404093878,1769819432376,-151.0,0.0003482,7]
[404093880,1769819432387,-151.0,0.0003482,7]
[404093882,1769819432396,-151.0,0.0003482,7]
[404093884,1769819432404,-151.0,0.0003482,7]
[404093885,1769819432414,-151.0,0.0003482,7]
[404093887,1769819432423,-151.0,0.0003482,7]
[404093889,1769819432432,-151.0,0.0003482,7]
[404093890,1769819432442,-151.0,0.0003482,7]
[404093891,1769819432451,-292.0,0.0003482,7]
[404093892,1769819432461,-229.22110186,0.00034832,14]
[404093893,1769819432471,-1288.63,0.00034836,30]
[404093894,1769819432480,-4921.76461126,0.00034838,7]
[404093895,1769819432489,-865.86248781,0.0003484,120]
[404093896,1769819432499,-250.0,0.00034876,30]
[404093897,1769819432508,-207.21849665,0.00034899,7]
[404093898,1769819432517,-1153.9651208,0.000349,30]
[404093899,1769819432526,-288.92683308,0.00034917,7]
[404093900,1769819432536,-2481.71,0.00034918,10]
[404093901,1769819432545,-853.83320487,0.00034918,10]
[404093941,1769819567983,805.08,0.00030137,120]
[404093946,1769820632055,-1496.8897785,0.0001275,2]
[404093947,1769820632068,-440.41335325,0.0001275,2]
[404093948,1769820632080,-643.77140468,0.0001275,2]
[404093949,1769820632106,-423.61116893,0.0001275,2]
[404093950,1769820632116,-251.15103994,0.00013273,2]
[404093966,1769820638171,-246.36163331,0.00013273,2]
[404093967,1769820638182,-500.0,0.00013273,2]
[404093968,1769820638193,-1000.0,0.00013821,2]
[404093969,1769820638204,-1500.0,0.00014368,2]
[404093970,1769820638216,-2000.0,0.00014916,2]
[404093971,1769820638227,-177.0,0.00015074,2]
[404093972,1769820638237,-217.687785,0.00015791,2]
[404093973,1769820638248,-204.0,0.00017074,2]
[404093974,1769820638259,-250.6869951,0.00017285,2]
[404093975,1769820638270,-231.0,0.00019074,2]
[404093976,1769820638281,-238.83137728,0.00019999,2]
[404093977,1769820638292,-287.82878644,0.00019999,2]
[404093978,1769820638304,-346.75623311,0.00019999,2]
[404093979,1769820638315,-434.7993123,0.00019999,2]
[404093980,1769820638329,-65.2006877,0.00019999,2]
[404093981,1769820638339,-456.24929637,0.00019999,2]
[404093982,1769820638349,-390.09708382,0.00019999,2]
[404093983,1769820638359,-305.11572693,0.00019999,2]
[404093984,1769820638368,-274.31244796,0.00019999,2]
[404093985,1769820638378,-500.0,0.00019999,2]
[404093986,1769820638388,-500.0,0.00019999,2]
[404093987,1769820638398,-500.0,0.00019999,2]
[404093988,1769820638408,-500.0,0.00019999,2]
[404093989,1769820638418,-500.0,0.00019999,2]
[404093990,1769820638429,-500.0,0.00019999,2]
[404093991,1769820638440,-72001.0,0.0002,14]
[404093992,1769820638452,-485.42877747,0.00020975,2]
[404093993,1769820638464,-258.0,0.00021074,2]
[404093994,1769820638475,-485.42877743,0.00022957,2]
[404093995,1769820638485,-285.0,0.00023074,2]
[404093996,1769820638495,-485.42877743,0.00024939,2]
[404093997,1769820638505,-312.0,0.00025075,2]
[404093998,1769820638515,-485.42877743,0.00026921,2]
[404093999,1769820638526,-213.894,0.00028659,20]
[404094000,1769820638536,-485.42877743,0.00028904,2]
[404094001,1769820638547,-485.42877743,0.00030886,2]
[404094002,1769820638557,-345.0,0.00032183,30]
[404094003,1769820638567,-1454.0,0.00032513,30]
[404094004,1769820638577,-404.0,0.00032513,30]
[404094005,1769820638587,-485.42877743,0.00032868,2]
[404094006,1769820638597,-1234.94,0.00033698,30]
[404094007,1769820638606,-1788.88413005,0.0003395,120]
[404094008,1769820638615,-167.63441357,0.000341,120]
[404094009,1769820638625,-184.83293008,0.000341,120]
[404094010,1769820638635,-441.93085018,0.000341,120]
[404094011,1769820638646,-199.6146215,0.000341,120]
[404094012,1769820638660,-178.40580008,0.000341,120]
[404094013,1769820638670,-169.99846014,0.000341,120]
[404094014,1769820638680,-676.34472308,0.000341,120]
[404094015,1769820638689,-698.03832981,0.000341,120]
[404094016,1769820638701,-191.9744,0.000341,120]
[404094017,1769820638711,-500.0,0.00034439,7]
[404094018,1769820638721,-1337.35,0.0003451,10]
[404094019,1769820638732,-1013.26246681,0.00034518,10]
[404094020,1769820638744,-591.55753319,0.00034518,10]
[404094021,1769820638754,-1234.94,0.0003452,31]
[404094022,1769820638764,-2000.0,0.00034528,7]
[404094023,1769820638775,-1925.79,0.00034547,10]
[404094024,1769820638785,-199.96,0.00034565,2]
[404094025,1769820638795,-505.53352011,0.00034576,7]
[404094026,1769820638805,-282.0,0.00034606,2]
[404094027,1769820638816,-916.47270822,0.00034672,2]
[404094028,1769820638828,-857.84929577,0.00034672,2]
[404094029,1769820638841,-676.21098175,0.00034672,2]
[404094030,1769820638853,-4459.95641639,0.00034672,2]
[404094036,1769820640377,-805.5,0.000341,30]
[404094037,1769820640388,-83.92,0.000341,30]
[404094038,1769820640433,-1249.08,0.000341,30]
[404094039,1769820640443,-1114.46,0.00034518,10]
[404094040,1769820640454,-6853.72840981,0.00034672,2]
[404094041,1769820640466,-424.43745755,0.00034672,2]
[404094042,1769820644457,-15944.33361,0.00034672,2]
[404094043,1769820644469,-12058.57452486,0.00034672,2]
[404094044,1769820644481,-5105.27622,0.00034672,2]
[404094045,1769820644507,-442.495,0.00034672,2]
[404094115,1769820646451,-3634.53511525,0.00034672,2]
[404094117,1769820646461,-258.0,0.00034672,30]
[404094119,1769820646470,-1393.0,0.00034672,30]
[404094121,1769820646478,-999.0,0.00034681,120]
[404094123,1769820646488,-43673.6137997,0.00034787,2]
[404094179,1769821254478,-351.55640781,0.00013273,2]
[404094191,1769821832231,-431.79330684,0.00013009,2]
[404094192,1769821832243,-417.16503418,0.00013009,2]
[404094193,1769821832264,-380.35427311,0.00013009,2]
[404094194,1769821832273,-500.0,0.00013273,2]
[404094195,1769821832283,-197.73488831,0.00013273,2]
[404094232,1769821838482,-302.26511169,0.00013273,2]
[404094233,1769821838492,-500.0,0.00013273,2]
[404094234,1769821838501,-500.0,0.00013273,2]
[404094235,1769821838511,-500.0,0.00013699,2]
[404094236,1769821838521,-500.0,0.00013699,2]
[404094237,1769821838530,-500.0,0.00013699,2]
[404094238,1769821838540,-300.0,0.0001382,2]
[404094239,1769821838549,-593.69315787,0.00013821,2]
[404094240,1769821838559,-1000.0,0.00013821,2]
[404094241,1769821838568,-1000.0,0.00013821,2]
[404094242,1769821838578,-655.51324143,0.00013821,2]
[404094243,1769821838587,-1000.0,0.00014247,2]
[404094244,1769821838597,-1000.0,0.00014247,2]
[404094245,1769821838606,-961.62464944,0.00014247,2]
[404094246,1769821838616,-1500.0,0.00014368,2]
[404094247,1769821838626,-1500.0,0.00014368,2]
[404094248,1769821838636,-1500.0,0.00014795,2]
[404094249,1769821838645,-204.25425048,0.00014795,2]
[404094250,1769821838667,-1295.74574952,0.00014795,2]
[404094251,1769821838678,-177.0,0.00015141,2]
[404094252,1769821838687,-420.0,0.00015143,2]
[404094253,1769821838697,-2000.0,0.00015342,2]
[404094254,1769821838707,-650.76464829,0.00015613,2]
[404094255,1769821838717,-4783.936727,0.00015614,2]
[404094256,1769821838727,-2500.0,0.0001589,2]
[404094257,1769821838737,-3000.0,0.00016438,2]
[404094258,1769821838746,-587.0,0.00016593,2]
[404094259,1769821838756,-3500.0,0.00016986,2]
[404094260,1769821838766,-161.80959249,0.00017041,2]
[404094261,1769821838776,-204.0,0.00017141,2]
[404094262,1769821838785,-1000.0,0.00017383,2]
[404094263,1769821838795,-500.0,0.00017534,2]
[404094264,1769821838805,-823.0,0.00018182,2]
[404094265,1769821838815,-231.0,0.00019141,2]
[404094266,1769821838824,-300.0,0.00019923,2]
[404094267,1769821838834,-230.9269,0.00021141,2]
[404094268,1769821838844,-161.72349687,0.00022948,2]
[404094269,1769821838854,-161.72349687,0.00023599,20]
[404094270,1769821838864,-161.72349687,0.00024249,38]
[404094271,1769821838874,-161.72349687,0.00024899,56]
[404094272,1769821838884,-1631.303981,0.00025,7]
[404094273,1769821838893,-161.72349687,0.00025549,74]
[404094274,1769821838903,-161.80959247,0.00025955,2]
[404094275,1769821838914,-161.72349687,0.00026199,92]
[404094276,1769821838923,-157.4036648,0.0002657,5]
[404094277,1769821838933,-161.72349687,0.00026849,110]
[404094278,1769821838943,-171.115,0.00028675,20]
[404094279,1769821838956,-404.5,0.00031797,30]
[404094280,1769821838966,-1280.0,0.00031797,30]
[404094281,1769821838975,-772.5,0.00031797,30]
[404094282,1769821838985,-160.0,0.00032,120]
[404094283,1769821838995,-500.0,0.00032877,10]
[404094284,1769821839005,-1132.03,0.00033698,30]
[404094285,1769821839017,-160.0,0.00034,120]
[404094286,1769821839027,-541.07577846,0.000341,120]
[404094287,1769821839037,-558.43066385,0.000341,120]
[404094288,1769821839047,-191.9744,0.000341,120]
[404094289,1769821839058,-167.63441357,0.000341,120]
[404094290,1769821839068,-184.83293008,0.000341,120]
[404094291,1769821839078,-353.54468014,0.000341,120]
[404094292,1769821839089,-178.40580008,0.000341,120]
[404094293,1769821839100,-169.99846014,0.000341,120]
[404094294,1769821839109,-275.0,0.00034201,2]
[404094295,1769821839119,-500.0,0.00034302,7]
[404094296,1769821839129,-500.0,0.00034439,7]
[404094297,1769821839140,-201.48015051,0.00034465,7]
[404094298,1769821839149,-242.72936318,0.00034465,7]
[404094299,1769821839159,-167.1819641,0.00034465,7]
[404094300,1769821839169,-14598.5062776,0.00034466,2]
[404094301,1769821839179,-1132.03,0.0003452,31]
[404094302,1769821839188,-340.0,0.00034541,2]
[404094303,1769821839198,-500.0,0.00034576,7]
[404094304,1769821839208,-500.0,0.00034713,7]
[404094305,1769821839217,-588.66752274,0.00034787,120]
[404094306,1769821839227,-152.0,0.00034787,7]
[404094307,1769821839236,-152.0,0.00034787,7]
[404094308,1769821839246,-152.0,0.00034787,7]
[404094309,1769821839255,-152.0,0.00034787,7]
[404094310,1769821839265,-152.0,0.00034787,7]
[404094311,1769821839274,-240.0,0.00034787,7]
[404094312,1769821839283,-268.00744026,0.00034818,33]
[404094313,1769821839294,-151.0,0.00034831,14]
[404094314,1769821839303,-151.0,0.00034831,14]
[404094315,1769821839312,-151.0,0.00034831,14]
[404094316,1769821839321,-151.0,0.00034831,14]
[404094317,1769821839330,-151.0,0.00034831,14]
[404094318,1769821839340,-151.0,0.00034831,14]
[404094319,1769821839349,-151.0,0.00034831,14]
[404094320,1769821839358,-151.0,0.00034831,14]
[404094321,1769821839368,-151.0,0.00034831,14]
[404094322,1769821839377,-151.0,0.00034831,14]
[404094323,1769821839386,-151.0,0.00034831,14]
[404094324,1769821839396,-151.0,0.00034831,14]
[404094325,1769821839406,-159.24679696,0.00034831,14]
[404094326,1769821839415,-999.0,0.00034846,120]
[404094327,1769821839424,-392.38989887,0.00034848,2]
[404094328,1769821839433,-500.0,0.0003485,7]
[404094329,1769821839442,-3053.0125604,0.00034869,2]
[404094330,1769821839451,-161.80959247,0.00034869,2]
[404094331,1769821839460,-644.94,0.00034872,10]
[404094332,1769821839469,-537.45,0.00034872,10]
[404094333,1769821839479,-76834.81945649,0.0003488,30]
[404094334,1769821839492,-3197.18973189,0.0003488,30]
[404094335,1769821839508,-334.73994276,0.0003488,30]
[404094336,1769821839519,-6682.4868,0.0003488,30]
[404094341,1769821840612,-1173.0,0.00031797,30]
[404094342,1769821840622,-19045.96159278,0.0003488,30]
[404094344,1769821840671,-10328.49496859,0.0003488,30]
[404094345,1769821840683,-46769.11673209,0.0003488,30]
[404094354,1769821845386,-731.65,0.0003487,10]
[404094355,1769821845399,-8070.24547139,0.0003488,30]
[404094356,1769821845412,-3722.3649,0.0003488,30]
[404094357,1769821845426,-2455.38369134,0.0003488,30]
[404094358,1769821845438,-507.49556332,0.0003488,30]
[404094370,1769821846568,-317984.65677686,0.0003488,30]
[404094371,1769821846579,-671.77767132,0.0003488,30]
[404094372,1769821846590,-4132.80713712,0.0003488,30]
[404094373,1769821846626,-1610.19785751,0.0003488,30]
[404094374,1769821846637,-881.04746652,0.0003488,30]
[404094375,1769821846648,-569.37999998,0.0003488,30]
[404094376,1769821846659,-11119.3811304,0.0003488,30]
[404094377,1769821846670,-2029.36460224,0.0003488,30]
[404094378,1769821846681,-9218.81736236,0.0003488,30]
[404094379,1769821846693,-11709.55348668,0.0003488,30]
[404094380,1769821894439,481.4,0.00030137,120]
[404094396,1769823020669,-298.27,9e-05,2]
[404094403,1769823032498,-2576.30804622,0.00012897,2]
[404094404,1769823032507,-500.0,0.00013699,2]
[404094405,1769823032519,-1000.0,0.00014247,2]
[404094406,1769823032527,-1500.0,0.00014795,2]
[404094407,1769823032536,-177.0,0.00015227,2]
[404094408,1769823032545,-2000.0,0.00015342,2]
[404094409,1769823032554,-300.0,0.00015399,2]
[404094410,1769823032564,-735.65036628,0.000154,2]
[404094613,1769823038569,-3436.85244262,0.000154,2]
[404094614,1769823038716,-283.32,0.000154,2]
[404094712,1769823042068,625.8,0.0003013,120]
[404094728,1769823044874,-447.54,0.000154,2]
[404094729,1769823045561,-5531.89582883,0.000154,2]
[404094730,1769823045570,-2500.0,0.0001589,2]
[404094731,1769823045579,-420.0,0.00016847,2]
[404094732,1769823045589,-213.25662872,0.00016999,2]
[404094733,1769823045599,-170.35092015,0.00016999,2]
[404094734,1769823045608,-41738.32868444,0.00017,2]
[404094756,1769823046745,-24734.70606573,0.00017,2]
[404094758,1769823046755,-204.0,0.00017227,2]
[404094760,1769823046765,-2141.7692244,0.000176,2]
[404094761,1769823046775,-2415.46801783,0.00018,2]
[404094772,1769823046876,-7056.81529489,0.00018,2]
[404094780,1769823209069,-500.0,0.00034981,120]
[404094781,1769823209094,-500.0,0.00034981,120]
[404094782,1769823209120,-500.0,0.00034981,120]
[404094783,1769823209146,-500.0,0.00034981,120]
[404094784,1769823209180,-500.0,0.00034981,120]
[404094785,1769823209206,-500.0,0.00034981,120]
[404094786,1769823209231,-500.0,0.00034981,120]
[404094787,1769823209257,-500.0,0.00034981,120]
[404094788,1769823209281,-500.0,0.00034981,120]
[404094789,1769823209304,-500.0808433,0.00034981,120]
[404094790,1769823209328,-444.94230831,0.00034981,120]
[404094791,1769823209351,-496.58165578,0.00034981,30]
[404094792,1769823209375,-500.0,0.00034981,120]
[404094793,1769823209398,-500.0,0.00034981,120]
[404094794,1769823209423,-500.0,0.00034981,120]
[404094795,1769823209446,-500.0,0.00034981,120]
[404094796,1769823209470,-500.0,0.00034981,120]
[404094797,1769823209497,-500.0,0.00034981,120]
[404094798,1769823209522,-500.0,0.00034981,120]
[404094799,1769823209547,-500.0,0.00034981,120]
[404094800,1769823209572,-500.0,0.00034981,120]
[404094801,1769823209595,-568.72871826,0.00034981,120]
[404094802,1769823209620,-999.40155846,0.00034981,30]
[404094803,1769823209643,-1096.54307962,0.00034981,30]
[404094804,1769823209667,-649.78302755,0.00034981,60]
[404094805,1769823209692,-500.0,0.00034981,60]
[404094806,1769823209715,-500.0,0.00034981,60]
[404094807,1769823209738,-500.0,0.00034981,60]
[404094808,1769823209762,-527.3643491,0.00034981,60]
[404094809,1769823209785,-251.55472688,0.00034981,30]
[404094810,1769823209809,-231.20499876,0.00034981,30]
[404094811,1769823209832,-162.04376263,0.00034981,120]
[404094812,1769823209856,-724.21834392,0.00034981,30]
[404094813,1769823209880,-512.3224888,0.00034981,60]
[404094814,1769823209904,-959.11453913,0.00034981,30]
[404094815,1769823209927,-151.52788587,0.00034981,120]
[404094816,1769823209952,-186.44278014,0.00034981,120]
[404094817,1769823209976,-150.68467653,0.00034981,120]
[404094818,1769823209999,-155.58319184,0.00034981,30]
[404094819,1769823210151,-43286.12079576,0.00034981,30]
[404094820,1769823210176,-493.58219479,0.00034981,33]
[404094821,1769823210200,-413.59158412,0.00034981,31]
[404094822,1769823210223,-972.19780782,0.00034981,120]
[404094823,1769823210246,-1103.49454364,0.00034981,30]
[404094824,1769823210270,-608.00447211,0.00034981,30]
[404094825,1769823210293,-500.0,0.00034981,120]
[404094826,1769823210319,-500.0,0.00034981,120]
[404094827,1769823210343,-500.0,0.00034981,120]
[404094828,1769823210368,-500.0,0.00034981,120]
[404094829,1769823210393,-500.0,0.00034981,120]
[404094830,1769823210417,-368.96965599,0.00034981,120]
[404094831,1769823210441,-500.0,0.00034981,120]
[404094832,1769823210466,-500.0,0.00034981,120]
[404094833,1769823210492,-500.0,0.00034981,120]
[404094834,1769823210516,-500.0,0.00034981,120]
[404094835,1769823210541,-500.0,0.00034981,120]
[404094836,1769823210565,-500.0,0.00034981,120]
[404094837,1769823210589,-500.0,0.00034981,120]
[404094838,1769823210613,-411.861656,0.00034981,120]
[404094839,1769823210643,-671.67,0.00034981,120]
[404094840,1769823210683,-671.67,0.00034981,120]
[404094841,1769823210712,-671.67,0.00034981,120]
[404094842,1769823210739,-671.67,0.00034981,120]
[404094843,1769823210764,-671.67,0.00034981,120]
[404094844,1769823210789,-671.67,0.00034981,120]
[404094845,1769823210814,-671.67,0.00034981,120]
[404094846,1769823210838,-671.67,0.00034981,120]
[404094847,1769823210861,-671.67,0.00034981,120]
[404094848,1769823210885,-671.67,0.00034981,120]
[404094849,1769823210908,-671.67,0.00034981,120]
[404094850,1769823210932,-671.67,0.00034981,120]
[404094851,1769823210956,-671.67,0.00034981,120]
[404094852,1769823210980,-671.67,0.00034981,120]
[404094853,1769823211005,-671.67,0.00034981,120]
[404094854,1769823211029,-671.67,0.00034981,120]
[404094855,1769823211053,-671.67,0.00034981,120]
[404094856,1769823211076,-671.67,0.00034981,120]
[404094857,1769823211100,-671.67,0.00034981,120]
[404094858,1769823211123,-671.67,0.00034981,120]
[404094859,1769823211147,-671.67,0.00034981,120]
[404094860,1769823211171,-671.67,0.00034981,120]
[404094861,1769823211194,-671.67,0.00034981,120]
[404094862,1769823211219,-671.75781361,0.00034981,120]
[404094863,1769823211244,-714.65,0.00034981,120]
[404094864,1769823211269,-714.65,0.00034981,120]
[404094865,1769823211292,-714.65,0.00034981,120]
[404094866,1769823211316,-714.65,0.00034981,120]
[404094867,1769823211340,-714.65,0.00034981,120]
[404094868,1769823211363,-714.65,0.00034981,120]
[404094869,1769823211387,-714.65,0.00034981,120]
[404094870,1769823211411,-714.65,0.00034981,120]
[404094871,1769823211435,-714.65,0.00034981,120]
[404094872,1769823211459,-714.65,0.00034981,120]
[404094873,1769823211482,-714.65,0.00034981,120]
[404094874,1769823211511,-714.65,0.00034981,120]
[404094875,1769823211537,-714.65,0.00034981,120]
[404094876,1769823211561,-714.65,0.00034981,120]
[404094877,1769823211587,-714.65,0.00034981,120]
[404094878,1769823211623,-714.65,0.00034981,120]
[404094879,1769823211648,-714.65,0.00034981,120]
[404094880,1769823211673,-714.65,0.00034981,120]
[404094881,1769823211697,-714.65,0.00034981,120]
[404094882,1769823211721,-714.65,0.00034981,120]
[404094883,1769823211746,-714.65,0.00034981,120]
[404094884,1769823211771,-714.65,0.00034981,120]
[404094885,1769823211794,-714.65,0.00034981,120]
[404094886,1769823211819,-714.65320537,0.00034981,120]
[404094887,1769823211844,-500.0,0.00034981,30]
[404094888,1769823211868,-500.0,0.00034981,30]
[404094889,1769823211896,-500.0,0.00034981,30]
[404094890,1769823211921,-500.0,0.00034981,120]
[404094891,1769823211946,-500.0,0.00034981,120]
[404094892,1769823211986,-500.0,0.00034981,120]
[404094893,1769823212015,-500.0,0.00034981,120]
[404094894,1769823212063,-500.0,0.00034981,120]
[404094895,1769823212093,-500.0,0.00034981,120]
[404094896,1769823212119,-500.0,0.00034981,120]
[404094897,1769823212148,-500.0,0.00034981,120]
[404094898,1769823212172,-500.0,0.00034981,120]
[404094899,1769823212198,-500.0,0.00034981,120]
[404094900,1769823212222,-500.0,0.00034981,120]
[404094901,1769823212247,-500.0,0.00034981,120]
[404094902,1769823212276,-500.0,0.00034981,120]
[404094903,1769823212301,-500.0,0.00034981,120]
[404094904,1769823212331,-500.0,0.00034981,120]
[404094905,1769823212367,-500.0,0.00034981,120]
[404094906,1769823212394,-500.0,0.00034981,120]
[404094907,1769823212419,-500.0,0.00034981,120]
[404094908,1769823212445,-226.6118904,0.00034981,120]
[404094909,1769823212469,-500.0,0.00034981,120]
[404094910,1769823212496,-500.0,0.00034981,120]
[404094911,1769823212523,-589.75940884,0.00034981,120]
[404094912,1769823212548,-500.0,0.00034981,120]
[404094913,1769823212576,-456.35677617,0.00034981,120]
[404094914,1769823212713,-500.0,0.00034981,120]
[404094915,1769823212739,-500.34011518,0.00034981,120]
[404094916,1769823212765,-500.0,0.00034981,120]
[404094917,1769823212791,-500.0,0.00034981,120]
[404094918,1769823212817,-500.0,0.00034981,120]
[404094919,1769823212842,-500.0,0.00034981,120]
[404094920,1769823212867,-500.0,0.00034981,120]
[404094921,1769823212893,-500.0,0.00034981,120]
[404094922,1769823212921,-499.82164215,0.00034981,120]
[404094923,1769823212947,-500.0,0.00034981,120]
[404094924,1769823212972,-500.0,0.00034981,120]
[404094925,1769823212997,-500.0,0.00034981,120]
[404094926,1769823213021,-500.0,0.00034981,120]
[404094927,1769823213045,-500.0,0.00034981,120]
[404094928,1769823213070,-500.0,0.00034981,120]
[404094929,1769823213095,-500.0,0.00034981,120]
[404094930,1769823213120,-500.0,0.00034981,120]
[404094931,1769823213145,-500.0,0.00034981,120]
[404094932,1769823213170,-500.0,0.00034981,120]
[404094933,1769823213194,-500.0,0.00034981,120]
[404094934,1769823213219,-518.67656109,0.00034981,120]
[404094935,1769823213243,-305.45734145,0.00034981,120]
[404094936,1769823213268,-904.1789516,0.00034981,120]
[404094937,1769823213292,-12880.60766007,0.00034981,45]
[404094938,1769823213316,-514.4787,0.00034981,120]
[404094939,1769823213341,-514.4787,0.00034981,120]
[404094940,1769823213366,-514.4787,0.00034981,120]
[404094941,1769823213391,-514.4787,0.00034981,120]
[404094942,1769823213415,-514.4787,0.00034981,120]
[404094943,1769823213439,-514.4787,0.00034981,120]
[404094944,1769823213464,-514.4787,0.00034981,120]
[404094945,1769823213492,-514.4787,0.00034981,120]
[404094946,1769823213519,-4198.14,0.00034981,120]
[404094947,1769823213548,-4198.14,0.00034981,120]
[404094948,1769823213575,-4198.14,0.00034981,120]
[404094949,1769823213603,-4198.14,0.00034981,120]
[404094950,1769823213628,-4198.14,0.00034981,120]
[404094951,1769823213653,-4198.14,0.00034981,120]
[404094952,1769823213680,-4198.14,0.00034981,120]
[404094953,1769823213706,-4198.14,0.00034981,120]
[404094954,1769823213732,-4198.14,0.00034981,120]
[404094955,1769823213757,-4198.14,0.00034981,120]
[404094956,1769823213783,-4198.14,0.00034981,120]
[404094957,1769823213807,-4198.14,0.00034981,120]
[404094958,1769823213832,-4198.14,0.00034981,120]
[404094959,1769823213857,-4198.14,0.00034981,120]
[404094960,1769823213883,-4198.14,0.00034981,120]
[404094961,1769823213908,-4198.14,0.00034981,120]
[404094962,1769823213932,-4198.14,0.00034981,120]
[404094963,1769823213956,-4198.14,0.00034981,120]
[404094964,1769823213982,-4198.14,0.00034981,120]
[404094965,1769823214006,-4198.14,0.00034981,120]
[404094966,1769823214032,-4198.14,0.00034981,120]
[404094967,1769823214056,-4198.14,0.00034981,120]
[404094968,1769823214080,-4198.14,0.00034981,120]
[404094969,1769823214105,-4198.22132572,0.00034981,120]
[404094970,1769823214129,-7512.25109807,0.00034981,30]
[404094971,1769823214153,-276.90734145,0.00034981,120]